Cogmind - Beta 9.6 @@@ ROGUE MODE // 2020.05.09 @ 16:57:48 Player: Judas Result: Destroyed by D-53 Grenadier with Mini Grenade Launcher Performance ------------- Evolutions (3) 1500 Regions Visited (8) 1600 Robots Destroyed (23) 115 Value Destroyed (684) 684 Prototype IDs (3) 60 Alien Tech Used (0) 0 Bonus (1103) 1103 TOTAL SCORE: 5062 Bonus ------- Follower Combat Kills 103 Entered Garrisons 200 Used RIF Installer 500 Aligned with FarCom 300 Cogmind --------- Core Integrity 0/700 Matter 250/300 Energy 100/100 System Corruption 1% Temperature Cool (0) Movement Core (550) Ox10 Location -7/Factory Parts ------- > --- POWER (1) -------- (None) > --- PROPULSION (4) --- (None) > --- UTILITY (5) ------ High-capacity Storage Unit > --- WEAPON (3) ------- (None) > --- INVENTORY (12) --- Light Ion Engine Light Nuclear Core Light Fission Core Medium Treads Medium Treads Medium Treads Relay Coupler [NC] (29) Precision Beam Rifle Precision Beam Rifle Plasma Cannon Peak State ------------ > --- POWER ------------ Nuclear Core > --- PROPULSION ------- Medium Treads Medium Treads Medium Treads Medium Treads > --- UTILITY ---------- High-capacity Storage Unit Advanced Terrain Scanner Transmission Jammer Improved Light Armor Plating Relay Coupler [Hunter] > --- WEAPON ----------- Heavy Assault Rifle Improved Datajack Longsword +1 > --- INVENTORY -------- Light Ion Engine Nuclear Core Light Nuclear Core Fission Core Light Fission Core Medium Treads Medium Treads Medium Treads Relay Coupler [NC] Precision Beam Rifle Precision Beam Rifle Plasma Cannon [Rating: 51] Favorites ----------- Power Light Ion Engine Engine Light Ion Engine Power Core Light Nuclear Core Propulsion Medium Treads Treads Medium Treads Leg Aluminum Leg Utility Large Storage Unit Device Advanced Terrain Scanner Storage Large Storage Unit Hackware Relay Coupler [Hunter] Protection Improved Light Armor Plating Weapon Longsword +1 Energy Gun EM Pulse Gun Energy Cannon Plasma Cannon Ballistic Gun Heavy Assault Rifle Slashing Weapon Longsword +1 Special Melee Weapon Improved Datajack Build | -11 -10 -10 -10 -9 -8 -8 -8 -7 ------- Run | Scr Mat Min Exi Min Mat Gar Mat Fac Slots Evolved 6 | . . . . . 4 . . 2 Power . | . . . . . . . . . Propulsion 2 | . . . . . 1 . . 1 Utility 3 | . . . . . 2 . . 1 Weapon 1 | . . . . . 1 . . . Parts Attached 34 | 1 2 . 2 . 8 9 5 7 Power 4 | . . . . . . 3 . 1 Engine 1 | . . . . . . 1 . . Core 3 | . . . . . . 2 . 1 Reactor . | . . . . . . . . . Propulsion 9 | . . . . . 3 . 1 5 Treads 9 | . . . . . 3 . 1 5 Leg . | . . . . . . . . . Wheel . | . . . . . . . . . Hover . | . . . . . . . . . Flight . | . . . . . . . . . Utility 12 | 1 2 . . . 2 3 3 1 Device 5 | . . . . . 2 1 2 . Storage 4 | 1 2 . . . . . 1 . Processor . | . . . . . . . . . Hackware 2 | . . . . . . 2 . . Protection 1 | . . . . . . . . 1 Artifact . | . . . . . . . . . Weapon 9 | . . . 2 . 3 3 1 . Energy Gun 2 | . . . . . 2 . . . Energy Cannon 3 | . . . 1 . 1 1 . . Ballistic Gun 1 | . . . . . . . 1 . Ballistic Cannon . | . . . . . . . . . Launcher . | . . . . . . . . . Special Weapon . | . . . . . . . . . Impact Weapon . | . . . . . . . . . Slashing Weapon 2 | . . . 1 . . 1 . . Piercing Weapon . | . . . . . . . . . Special Melee Weapon 1 | . . . . . . 1 . . Unidentified Prototypes 3 | . . . 2 . 1 . . . Parts Lost 15 | . . . . . 1 1 1 12 Power 1 | . . . . . . . . 1 Propulsion 5 | . . . . . . . 1 4 Utility 4 | . . . . . . . . 4 Weapon 5 | . . . . . 1 1 . 3 Highest Loss Streak 11 | . . . . . 1 1 1 11 Average Slot Usage (%) 95 | . 100 100 100 100 92 97 97 81 Engine 7 | . 14 14 14 14 9 5 . . Core 2 | . . . . . . 3 9 6 Treads 16 | . . . . . 21 27 26 24 Leg 9 | . 28 28 28 28 3 . . . Device 9 | . . . . . 16 12 11 11 Storage 19 | . 28 28 28 28 18 18 15 7 Hackware 3 | . . . . . . 5 9 5 Energy Gun 9 | . 14 14 14 14 12 11 . . Energy Cannon 1 | . . . . . 2 2 . . Ballistic Gun 4 | . 14 14 7 . . . 7 6 Slashing Weapon 7 | . . . 6 14 9 6 9 7 Special Melee Weapon 2 | . . . . . . 4 9 6 Naked Turns . | . . . . . . . . . Heaviest Build 51 | 14 38 38 40 40 50 49 46 51 Greatest Support 112 | 20 20 20 20 20 84 84 84 112 Greatest Overweight (x) 15 | . 1 1 1 1 2 . . 15 Average Overweight (x) . | . . 1 1 1 . . . . Largest Inventory Capacity 18 | 8 16 16 16 16 16 16 18 12 Average Capacity 15 | 6 15 16 16 16 16 16 14 12 Most Carried 16 | 6 8 8 13 12 13 16 16 12 Average Carried 11 | 6 7 8 11 12 11 14 14 11 Final Capacity 16 | 8 16 16 16 16 16 16 12 12 Final Carried 16 | 6 8 8 12 12 12 16 11 10 Class Distribution -------------------- 60% | Mutant 38% | Assassin Dominant Class ---------------- Mutant | -10/Materials Mutant | -10/Mines Mutant | -10/Exiles Mutant | -9/Mines Assassin | -8/Materials Mutant | -8/Garrison Mutant | -8/Materials Assassin | -7/Factory Resources | -11 -10 -10 -10 -9 -8 -8 -8 -7 ----------- Run | Scr Mat Min Exi Min Mat Gar Mat Fac Matter Collected 448 | 219 30 . . . 95 90 14 . Remotely . | . . . . . . . . . Salvage Created 834 | 101 94 . . . 198 313 80 48 Parts 36 | 4 3 . . . 10 11 8 . Haulers Intercepted 2 | . 1 . . . 1 . . . Recyclers Shooed . | . . . . . . . . . Parts Field Recycled . | . . . . . . . . . Retrieved Matter . | . . . . . . . . . Parts Self-Destructed . | . . . . . . . . . Prevented . | . . . . . . . . . Kills | -11 -10 -10 -10 -9 -8 -8 -8 -7 ------- Run | Scr Mat Min Exi Min Mat Gar Mat Fac Combat Hostiles Destroyed 17 | . 1 . . . 2 8 3 3 Melee 11 | . . . . . 2 5 1 3 Guns 3 | . 1 . . . . . 2 . Cannons 3 | . . . . . . 3 . . Classes Destroyed 9 | 2 2 . . . 2 2 . 1 Worker 2 | . . . . . 2 . . . Tunneler 1 | 1 . . . . . . . . Hauler 2 | . 1 . . . 1 . . . Recycler 1 | 1 . . . . . . . . Swarmer 5 | . . . . . . 3 2 . Grunt 6 | . 1 . . . 1 4 . . Brawler 1 | . . . . . . 1 . . Sentry 2 | . . . . . 1 . 1 . Assembled 3 | . . . . . . . . 3 Best Kill Streak 5 | 1 1 . . . 2 5 2 3 Combat Bots Only 5 | . 1 . . . 1 5 2 3 Max Kills in Single Turn 1 | 1 1 . . . 1 1 1 1 Gunslinging . | . . . . . . . . . Exploded . | . . . . . . . . . Melee 1 | . . . . . 1 1 1 1 Uniques/NPCs Destroyed . | . . . . . . . . . Combat | -11 -10 -10 -10 -9 -8 -8 -8 -7 -------- Run | Scr Mat Min Exi Min Mat Gar Mat Fac Damage Taken 3577 | . 42 . . . 384 687 165 2299 Core 895 | . . . . . 59 120 15 701 Absorbed by Shields . | . . . . . . . . . Core Remaining (%) 88 | 100 . . . 100 . . 64 . Volleys Fired 32 | 9 10 . . . . 10 3 . Largest 2 | 2 2 . . . . 1 1 . Hottest 80 | 60 60 . . . . 80 23 . Shots Fired 51 | 18 20 . . . . 10 3 . Gun 41 | 18 20 . . . . . 3 . Cannon 10 | . . . . . . 10 . . Launcher . | . . . . . . . . . Special . | . . . . . . . . . Kinetic 22 | 9 10 . . . . . 3 . Thermal 10 | . . . . . . 10 . . Explosive . | . . . . . . . . . Electromagnetic 19 | 9 10 . . . . . . . Robot Hit Streak 9 | 5 9 . . . . 5 3 . Robot Miss Streak 3 | 3 1 . . . . 1 1 . Penetration Max . | . . . . . . . . . Secondary Targets . | . . . . . . . . . Shots Hit Robots 74 | 11 13 . . 1 11 23 7 8 Core Hits 25 | 3 4 . . . 4 8 3 3 Critical Hits 1 | . . . . . . 1 . . Critical Kills . | . . . . . . . . . Critical Parts Destroyed 1 | . . . . . . 1 . . Melee Attacks 54 | . . . . 1 15 17 10 11 Impact . | . . . . . . . . . Slashing 51 | . . . . 1 15 14 10 11 Piercing . | . . . . . . . . . Sneak Attacks 6 | . . . . 1 5 . . . Combat Hostiles . | . . . . . . . . . Follow-up Attacks . | . . . . . . . . . Damage Inflicted 2766 | 132 210 . . 110 951 685 244 434 Guns 296 | 111 154 . . . . . 31 . Cannons 173 | . . . . . . 173 . . Explosions 77 | 21 56 . . . . . . . Melee 2220 | . . . . 110 951 512 213 434 Ramming . | . . . . . . . . . Kinetic 103 | 20 52 . . . . . 31 . Thermal 250 | 21 56 . . . . 173 . . Explosive . | . . . . . . . . . Electromagnetic 193 | 91 102 . . . . . . . Impact . | . . . . . . . . . Slashing 2220 | . . . . 110 951 512 213 434 Piercing . | . . . . . . . . . Highest Corruption 1 | . . . . . . . . 1 Average Corruption 1 | . . . . . . . . 1 Corruption Purged . | . . . . . . . . . Overload Shots . | . . . . . . . . . Overflow Damage 360 | . 18 . . 70 201 4 . 67 Projectiles 4 | . . . . . . 4 . . Explosions 18 | . 18 . . . . . . . Melee 338 | . . . . 70 201 . . 67 Knockbacks . | . . . . . . . . . Impact . | . . . . . . . . . Kinetic . | . . . . . . . . . Secondary . | . . . . . . . . . Self-Inflicted Damage . | . . . . . . . . . Shots . | . . . . . . . . . Rammed . | . . . . . . . . . Targets Rammed . | . . . . . . . . . Kicked . | . . . . . . . . . Crushed . | . . . . . . . . . Highest Temperature 257 | 40 44 . . . . 257 . . Average Temperature 62 | 16 20 . . . . 129 . . Received Heat Transfer 639 | . 24 . . . 198 261 36 120 Effects 2 | . . . . . . 2 . . Interference 2 | . . . . . . 2 . . Siege Activations . | . . . . . . . . . Robots Corrupted . | . . . . . . . . . Combat Hostiles . | . . . . . . . . . Parts Fried . | . . . . . . . . . Impact Corruptions . | . . . . . . . . . Robots Melted . | . . . . . . . . . Combat Hostiles . | . . . . . . . . . Parts Melted . | . . . . . . . . . Heat Transferred 550 | 50 150 . . . . 350 . . Parts Sabotaged . | . . . . . . . . . Parts Stolen . | . . . . . . . . . Parts Stripped . | . . . . . . . . . Power Chain Reactions 3 | 1 2 . . . . . . . Missiles Intercepted . | . . . . . . . . . Alert | -11 -10 -10 -10 -9 -8 -8 -8 -7 ------- Run | Scr Mat Min Exi Min Mat Gar Mat Fac Peak Influence 274 | 10 78 30 . . 82 274 223 103 Average Influence 88 | 5 25 30 . . 17 160 187 81 Maximum Alert Level 1 | . . . . . . 1 1 . Low Security (%) 86 | 100 100 100 . 100 100 72 60 100 Level 1 13 | . . . . . . 27 39 . Level 2 . | . . . . . . . . . Level 3 . | . . . . . . . . . Level 4 . | . . . . . . . . . Level 5 . | . . . . . . . . . High Security . | . . . . . . . . . Max Security . | . . . . . . . . . Squads Dispatched 4 | . 1 . . . 2 . . 1 Investigation . | . . . . . . . . . Extermination 1 | . . . . . . . . 1 Reinforcement 3 | . 1 . . . 2 . . . Assault . | . . . . . . . . . Garrison . | . . . . . . . . . Intercept . | . . . . . . . . . Construction Impeded . | . . . . . . . . . Haulers Reinforced . | . . . . . . . . . Stealth | -11 -10 -10 -10 -9 -8 -8 -8 -7 --------- Run | Scr Mat Min Exi Min Mat Gar Mat Fac Distress Signals 2 | . . . . . 2 . . . Communications Jammed . | . . . . . . . . . Distress Signals . | . . . . . . . . . Times Spotted 48 | . 4 . . . 15 12 3 14 Peak Tracking Total 8 | . 3 . . . 8 4 2 7 Tactical Retreats 1 | . . . . . . . . 1 Traps | -11 -10 -10 -10 -9 -8 -8 -8 -7 ------- Run | Scr Mat Min Exi Min Mat Gar Mat Fac Traps Triggered 1 | . . . . . . . . 1 Indirectly . | . . . . . . . . . Trap Hack Attempts . | . . . . . . . . . Triggered . | . . . . . . . . . Disarmed . | . . . . . . . . . Reprogrammed . | . . . . . . . . . Reused . | . . . . . . . . . Traps Extracted . | . . . . . . . . . Installed . | . . . . . . . . . Triggered . | . . . . . . . . . Exploded 1 | . . . . . . . . 1 Machines | -11 -10 -10 -10 -9 -8 -8 -8 -7 ---------- Run | Scr Mat Min Exi Min Mat Gar Mat Fac Machines Disabled 3 | . 2 . . . . 1 . . Max in Single Turn 1 | . 1 . . . . 1 . . Garrison Relay 1 | . . . . . . 1 . . Machines Sabotaged . | . . . . . . . . . Garrisons Compromised . | . . . . . . . . . Overloaded Fab Kills . | . . . . . . . . . Fab Network Shutdowns . | . . . . . . . . . Hacking | -11 -10 -10 -10 -9 -8 -8 -8 -7 --------- Run | Scr Mat Min Exi Min Mat Gar Mat Fac Machines Accessed 8 | . 2 . 4 . 2 . . . Terminals 3 | . 2 . . . 1 . . . Fabricators . | . . . . . . . . . Repair Stations . | . . . . . . . . . Recycling Units . | . . . . . . . . . Scanalyzers . | . . . . . . . . . Garrison Access 1 | . . . . . 1 . . . Total Hacks 54 | . 3 . 48 . 3 . . . Successful 51 | . 2 . 48 . 1 . . . Failed 3 | . 1 . . . 2 . . . Catastrophic . | . . . . . . . . . Database Lockouts . | . . . . . . . . . Manual 5 | . 3 . 1 . 1 . . . Terminals 4 | . 3 . . . 1 . . . Fabricators . | . . . . . . . . . Repair Stations . | . . . . . . . . . Recycling Units . | . . . . . . . . . Scanalyzers . | . . . . . . . . . Garrison Access 2 | . . . . . 2 . . . Terminal Hacks 48 | . . . 48 . . . . . Record 48 | . . . 48 . . . . . Fabricator Hacks . | . . . . . . . . . Repair Station Hacks . | . . . . . . . . . Recycling Unit Hacks . | . . . . . . . . . Scanalyzer . | . . . . . . . . . Garrison Access Hacks 1 | . . . . . 1 . . . Unlock Access 1 | . . . . . 1 . . . Unauthorized Hacks 2 | . 2 . . . . . . . Terminals 2 | . 2 . . . . . . . Assimilate 1 | . 1 . . . . . . . Botnet 1 | . 1 . . . . . . . Fabricators . | . . . . . . . . . Repair Stations . | . . . . . . . . . Recycling Units . | . . . . . . . . . Scanalyzers . | . . . . . . . . . Garrison Access . | . . . . . . . . . Data Cores Recovered . | . . . . . . . . . Used . | . . . . . . . . . Hacking Detections 3 | . 1 . . . 2 . . . Full Trace Events . | . . . . . . . . . Feedback Events . | . . . . . . . . . Feedback Blocked . | . . . . . . . . . Robot Schematics Acquired . | . . . . . . . . . Robots Built . | . . . . . . . . . Matter . | . . . . . . . . . Time . | . . . . . . . . . Total Robot Build Rating . | . . . . . . . . . Part Schematics Acquired . | . . . . . . . . . Parts Built . | . . . . . . . . . Matter . | . . . . . . . . . Time . | . . . . . . . . . Total Part Build Rating . | . . . . . . . . . Parts Repaired . | . . . . . . . . . Time . | . . . . . . . . . Parts Recycled . | . . . . . . . . . Recycled Matter . | . . . . . . . . . Retrieved Matter . | . . . . . . . . . Retrieved Components . | . . . . . . . . . Parts Scanalyzed . | . . . . . . . . . Part Schematics Acquired . | . . . . . . . . . Parts Damaged . | . . . . . . . . . Bothacking | -11 -10 -10 -10 -9 -8 -8 -8 -7 ------------ Run | Scr Mat Min Exi Min Mat Gar Mat Fac Used RIF Installer 1 | . . . . . . 1 . . Robots Hacked 3 | . . . . . . 3 . . Non-combat . | . . . . . . . . . Combat 3 | . . . . . . 3 . . Robot Hacks Applied 3 | . . . . . . 3 . . formatsys_high 3 | . . . . . . 3 . . Relay Couplers Released 5 | . . . . . . 5 . . Machine Destruction 5 | . . . . . . 5 . . Attached 2 | . . . . . . 2 . . Robots Rewired . | . . . . . . . . . Allies Hacked . | . . . . . . . . . Hacks Repelled . | . . . . . . . . . Allies | -11 -10 -10 -10 -9 -8 -8 -8 -7 -------- Run | Scr Mat Min Exi Min Mat Gar Mat Fac Total Allies 6 | . . 3 . . . 3 . . Largest Group 3 | . . 3 3 3 3 2 . . Highest-Rated Group 40 | . . 40 40 40 40 32 . . Highest-Rated Ally 21 | . . 16 16 16 16 21 . . Total Orders . | . . . . . . . . . Ally Attacks 28 | . . . . . 22 6 . . Total Damage 338 | . . . . . 189 149 . . Kills 4 | . . . . . 2 2 . . Allies Corrupted . | . . . . . . . . . Allies Melted . | . . . . . . . . . Intel | -11 -10 -10 -10 -9 -8 -8 -8 -7 ------- Run | Scr Mat Min Exi Min Mat Gar Mat Fac Robot Analysis Total . | . . . . . . . . . Derelict Logs Recovered 1 | . . . . 1 . . . . Drone Launches . | . . . . . . . . . Drone Recoveries . | . . . . . . . . . Exploration | -11 -10 -10 -10 -9 -8 -8 -8 -7 ------------- Run | Scr Mat Min Exi Min Mat Gar Mat Fac Turns Passed 2557 | 56 159 99 451 105 561 447 396 283 Spaces Moved 1231 | 25 87 62 296 58 242 177 158 126 Core 8 | . . . . . . . . 8 Treads 629 | . . . . . 176 177 158 118 Legs 594 | 25 87 62 296 58 66 . . . Wheels . | . . . . . . . . . Hover . | . . . . . . . . . Flight . | . . . . . . . . . Fastest Speed 120 | 120 120 150 150 150 150 160 160 160 Average Speed 158 | 120 146 150 150 150 161 160 160 190 Slowest Speed 800 | 120 150 150 150 150 180 160 160 800 Overloaded Moves . | . . . . . . . . . Propulsion Burnouts . | . . . . . . . . . Robots Hopped . | . . . . . . . . . Cave-ins Triggered . | . . . . . . . . . Exploration Rate (%) 22 | 4 17 11 67 19 26 35 17 6 Regions Visited 8 Branch Regions 3 Pre-discovered Areas 2 | . . . 1 1 . . . . Known Exits Taken 1 | . . . . . 1 . . . Unknown Exits Taken 6 | 1 1 1 1 1 . . 1 . Scrap Searched . | . . . . . . . . . Spaces Dug 11 | . . . . . 3 . 5 3 Terrain Destroyed 22 | 7 4 . . . 3 . 5 3 Melee 11 | . . . . . 3 . 5 3 Projectile . | . . . . . . . . . AOE 11 | 7 4 . . . . . . . Actions | -11 -10 -10 -10 -9 -8 -8 -8 -7 --------- Run | Scr Mat Min Exi Min Mat Gar Mat Fac Total 1739 | 34 100 68 303 75 396 312 289 162 Wait 359 | . . 7 . 17 118 94 110 13 Move 1224 | 24 86 61 295 57 242 176 157 126 Hop . | . . . . . . . . . Pick Up 16 | . 1 . 5 . 5 4 1 . Fast Attach 12 | 1 . . . . 8 . 2 1 Attach 5 | . . . 1 . . 1 2 1 Detach . | . . . . . . . . . Swap 17 | . 2 . 1 . . 8 1 5 Drop 19 | . 1 . 1 . 8 1 3 5 Fire 32 | 9 10 . . . . 10 3 . Melee 54 | . . . . 1 15 17 10 11 Ram . | . . . . . . . . . Kick . | . . . . . . . . . Crush . | . . . . . . . . . Escape Stasis . | . . . . . . . . . Rewire 1 | . . . . . . 1 . . Trap . | . . . . . . . . . Miscellaneous . | . . . . . . . . . Route ------- -11/Scrapyard -10/Materials -10/Mines -10/Exiles -9/Mines -8/Materials (discovered 2 exits: [Fac] / Gar) -8/Garrison -8/Materials -7/Factory History --------- Turn | Location | Event 7 | -11/Scrapyard | Discovered new exit (range 2) 57 | -11/Scrapyard | Entered Materials 190 | -10/Materials | Discovered new exit (range 8) 216 | -10/Materials | Entered Mines 248 | -10/Mines | Assisted by bots powering up and referring to "LRC-V3" 297 | -10/Mines | Deemed a non-threat by the Exiles lab entrance 299 | -10/Mines | Discovered new exit (range 5) 304 | -10/Mines | Build established: Mutant 315 | -10/Mines | Entered Exiles 315 | -10/Exiles | Accompanied by 3 allies 359 | -10/Exiles | Met 8R-AWN 386 | -10/Exiles | Met EX-HEX 444 | -10/Exiles | Met EX-BIN 465 | -10/Exiles | Aligned with FarCom system 467 | -10/Exiles | Given EX-Vault access code 542 | -10/Exiles | Opened EX-Vault 548 | -10/Exiles | Found Prototype Energy Cannon 549 | -10/Exiles | Identified Gui. Plasma Cannon 552 | -10/Exiles | Found Prototype Slashing Weapon 553 | -10/Exiles | Identified Longsword +1 586 | -10/Exiles | Warned to stay clear of 0b10 Research branches 629 | -10/Exiles | Met EX-DEC 661 | -10/Exiles | Learned location of Zion (-7) 751 | -10/Exiles | Discovered new exit (range 10) 766 | -10/Exiles | Left Exiles lab with Longsword +1 766 | -10/Exiles | Entered Mines 766 | -9/Mines | Accompanied by 3 allies 771 | -9/Mines | Met a Derelict bent on vengeance 852 | -9/Mines | Discovered new exit (range 3) 871 | -9/Mines | Entered Materials 871 | -8/Materials | Accompanied by 3 allies 871 | -8/Materials | Evolved 4 slots: Propulsion x1, Utility x2, Weapon x1 1114 | -8/Materials | Discovered new exit (range 18) 1221 | -8/Materials | Build established: Assassin 1432 | -8/Materials | Identified exit to Garrison 1432 | -8/Materials | Entered Garrison 1440 | -8/Garrison | Installed Relay Interface Framework 1536 | -8/Garrison | Triggered checkpoint 1589 | -8/Garrison | Garrison Relay disabled 1684 | -8/Garrison | Triggered checkpoint 1742 | -8/Garrison | Triggered checkpoint 1855 | -8/Garrison | Discovered new exit (range 15) 1879 | -8/Garrison | Entered Materials 1968 | -8/Materials | Build established: Mutant 2269 | -8/Materials | Discovered new exit (range 4) 2275 | -8/Materials | Entered Factory 2275 | -7/Factory | Evolved 2 slots: Propulsion x1, Utility x1 2442 | -7/Factory | Assembled infested ambush trap array 2456 | -7/Factory | Build established: Assassin 2526 | -7/Factory | Core integrity fell below 50% 2549 | -7/Factory | Core integrity fell below 20% 2551 | -7/Factory | Lost 11 parts (1p4n4u2w) 2558 | -7/Factory | Destroyed by D-53 Grenadier with Mini Grenade Launcher Last Messages --------------- 02508_ The unstable cave ceiling collapses. 02509_ Relay Coupler [Hunter] destroyed. 02509_ Med. Treads destroyed. 02509_ Dropped Rigged Fission Core. 02510_ Dropped Rigged Nuclear Core. 02514_ The unstable cave ceiling collapses. 02520_ Hvy. Assault Rifle destroyed. 02520_ Imp. Datajack destroyed. 02520_ Nuclear Core destroyed. 02520_ Adv. Terrain Scanner destroyed. 02525_ The unstable cave ceiling collapses. 02525_ ALERT: Rogue bot located, Programmers report to Factory Zone 5S. 02531_ K-01 Serf collects debris. 02546_ The unstable cave ceiling collapses. 02548_ K-01 Serf collects debris. 02551_ Rigged Nuclear Core explodes. 02552_ The unstable cave ceiling collapses. 02553_ K-01 Serf destroyed. 02554_ The unstable cave ceiling collapses. 02554_ Longsword +1 destroyed. Map ----- +----------------------------------------------------+ | ??? ?????????????????????????????? | | ????# ##?????#????????????????????????? | | #???# # # ##??????#######?#??????????????? | | ??###+#### ##?????# ???????????????? | | # ! ####??# """ ""?? #?????????? | | # ! # ###### """ """??????#?????? | | # # # # """ """????????????? | | # ## ???????????? | | # # ## """ """ #???#?????? | | # # # ## """ """ #?????????? | | # + """ """ #??#??????? | | ? # # #?????????? | | ? # # #?????????? | | ? # # ## #?????????? | | ?? ??# # # #?????????? | | ?? ??# ##### ###+#### ?????? | | ??? ???# ????? | | ????#####???# dd r ????? | | ???????????## ????? | | ??????????? Y????? | | ???????????## ?????? | | ????????????# ??????? | | ????????????# ??????? | | ????????????#####+### #####+#### ??????? | | ??????? ???# ! #?#???????? | | ???????????# @ #?????????? | | ???????????# % g + ???#????? | | ???????????# """ """ b#?????????? | | ???????????# + # """ """???#????????? | | ???????????# # # """ ""?????????????? | | ???????????? # # ?g???????????? | | ???????????? ?# # p ???????????????? | | ???????????? ?# # ""??????????????? | | ????????????? ?# #? ""??????????????? | | ????????????? ??? ?? "??????????????? | | ?????????????? ??? ?? ??????????????? | | ??????????????#####+#???? ??####+###?????????????? | | ????????????????????????? ???????????????????????? | | ????????????????????????? ???????????????????????? | | ?????????????????????????"???????????????????????? | | ?????????????????????????????????????????????????? | | ?????????????????????????????????????????????????? | | ?????????????????????????????????????????????????? | | ?????????????????????????????????????????????????? | | ?????????????????????????????????????????????????? | | ?????????????????????????????????????????????????? | | ?????????????????????????????????????????????????? | | ?????????????????????????????????????????????????? | | ?????????????????????????????????????????????????? | | ?????????????????????????????????????????????????? | +----------------------------------------------------+ Best States ------------- Heat Dissipation 34 Energy Generation 14 Energy Capacity 240 Matter Stores 300 Matter Capacity 300 Sight Range 16 Terrain Scan Range 20 Terrain Scan Density 10 Jamming Range 8 Armor Coverage 150 Evasion (%) 40 Recoil Reduction 4 Item Schematics ----------------- None Robot Schematics ------------------ None Fabricated ------------ Nothing Alien Tech Used ----------------- None Achievements -------------- None Challenges ------------ None Game ------ Seed RemoteSwarmMallet Manual? 0 Play Time 00:27:59 Cumulative 57.6 hours Start 2020.05.09 @ 16:22:05 End 2020.05.09 @ 16:57:48 Sessions 1 Manual Loads 0 Difficulty Rogue Special Mode None Game No. 102 Rogue 102 Adventurer 0 Explorer 0 Win Type - Total 0 Types 0/0/0/0/0/0/0 Lore% 30 Gallery% 43 Achievement% 32 Wizard Run 0 Options --------- ASCII 0 Keyboard 0 Movement Mouse Keybinds 0 Fullscreen 2 Font 18/SmallcapsGlow Map View 76x50 Tactical HUD 1 Map Filters NONE Filters NONE Steam 1 RUN: d1a8fb5a-1125-4b54-9813-6c4392887f09